bitfinex/quotes_SOLUSD_20250721
["timestamp","ask_amount","ask_price","bid_price","bid_amount"]
[1753133527602,0.06,195.04,195.03,84.49023698]
[1753133528585,0.06,195.04,195.03,58.49023698]
[1753133534280,0.06,195.04,195.03,10.0]
[1753133534479,0.74,195.04,195.03,10.0]
[1753133537888,7.35282069,195.04,195.03,10.0]
[1753133538405,0.74,195.04,195.03,10.0]
[1753133539304,7.35282069,195.04,195.01,10.03]
[1753133539603,6.61282069,195.02,195.01,0.03]
[1753133539802,24.97450466,195.02,195.01,0.03]
[1753133540002,24.97450466,195.02,194.98,0.03]
[1753133540003,16.78468397,195.01,194.98,0.03]
[1753133540219,6.61282069,194.99,194.98,0.03]
[1753133540588,7.29282069,194.99,194.98,0.03]
[1753133541904,0.68,195.01,194.98,0.03]
[1753133542105,0.68,195.01,195.0,10.0]
[1753133542610,0.68,195.01,194.99,10.0]
[1753133542804,0.68,195.01,195.0,10.0]
[1753133543625,16.78468397,195.0,194.98,0.03]
[1753133543835,23.39750466,194.99,194.98,0.03]
[1753133544114,29.20597278,194.99,194.98,0.03]
[1753133544313,36.74,194.99,194.98,0.03]
[1753133544612,0.68,195.01,194.98,0.03]
[1753133544809,0.68,195.01,195.0,10.0]
[1753133545001,0.68,195.01,194.99,10.0]
[1753133545183,0.68,195.01,195.0,10.0]
[1753133546026,8.18982069,195.02,195.0,10.0]
[1753133546027,1.577,195.02,195.0,10.0]
[1753133546323,0.06,195.04,195.03,10.0]
[1753133546485,0.06,195.04,195.03,16.61282069]
[1753133546685,0.06,195.04,195.03,17.33282069]
[1753133549207,0.06,195.04,195.03,48.46023698]
[1753133550104,0.06,195.04,195.03,48.9729786]
[1753133552523,0.06,195.04,195.03,48.2529786]
[1753133553001,0.74,195.04,195.03,10.0]
[1753133554838,0.74,195.04,195.02,10.0]
[1753133555037,6.61282069,195.03,195.0,10.0]
[1753133555327,23.39750466,195.01,194.98,0.03]
[1753133555529,6.61282069,194.99,194.98,0.03]
[1753133555908,7.29282069,194.99,194.98,0.03]
[1753133557328,0.68,194.99,194.98,0.03]
[1753133557519,7.29282069,194.99,194.98,0.03]
[1753133557836,29.20597278,194.99,194.98,0.03]
[1753133558601,7.28282069,195.02,194.98,10.03]
[1753133558801,0.67,195.01,194.98,10.03]
[1753133559434,0.67,195.0,194.98,10.03]
[1753133559632,0.67,195.02,194.98,10.03]
[1753133559849,36.06,195.02,194.99,10.0]
[1753133560013,0.67,195.01,194.99,10.0]
[1753133560531,0.67,195.0,194.99,10.0]
[1753133561028,0.67,195.0,194.98,10.03]
[1753133561239,0.67,195.0,194.99,10.0]
[1753133562943,0.67,195.0,194.98,10.03]
[1753133563145,0.67,195.0,194.99,10.0]
[1753133564246,8.2659,195.03,194.99,10.0]
[1753133564433,38.3539,195.03,195.01,10.0]
[1753133564633,0.67,195.02,195.01,10.0]
[1753133565638,0.67,195.02,194.98,5.15850608]
[1753133565639,24.06750466,195.02,194.98,0.03]
[1753133565839,23.39750466,194.99,194.98,0.03]
[1753133566051,59.45750466,194.99,194.98,0.03]
[1753133566258,65.25597278,194.99,194.98,0.03]
[1753133570632,91.25597278,194.99,194.98,0.03]
[1753133571449,5.1289942,194.97,194.95,0.03]
[1753133571658,59.47750466,194.96,194.95,0.03]
[1753133572041,43.36282069,194.96,194.95,0.03]
[1753133573340,65.27676194,194.96,194.95,0.03]
[1753133574453,29.19676194,194.96,194.95,0.03]
[1753133574649,65.27676194,194.96,194.95,0.03]
[1753133577469,29.19676194,194.96,194.95,0.03]
[1753133577656,65.27676194,194.96,194.95,0.03]
[1753133579781,29.19676194,194.96,194.95,0.03]
[1753133579944,65.27676194,194.96,194.95,0.03]
[1753133582358,6.61282069,194.94,194.93,0.03]
[1753133582553,42.69282069,194.94,194.93,0.03]
[1753133582757,43.36282069,194.94,194.93,0.03]
[1753133583970,48.49260421,194.94,194.93,0.03]
[1753133584878,153.77728818,194.94,194.93,0.03]
[1753133585248,32.61282069,194.92,194.91,0.2]
[1753133585450,68.69282069,194.92,194.91,0.2]
[1753133585674,69.36282069,194.92,194.91,0.2]
[1753133586071,97.89063522,194.92,194.91,0.2]
[1753133586272,30.01032535,194.91,194.9,0.03]
[1753133586572,30.68032535,194.91,194.9,0.03]
[1753133586759,119.18032535,194.91,194.9,0.03]
[1753133588552,126.90903417,194.91,194.9,0.03]
[1753133588757,126.90903417,194.91,194.86,0.03]
[1753133588758,16.78468397,194.87,194.86,0.03]
[1753133589063,16.78468397,194.87,194.85,0.2]
[1753133589064,26.0,194.84,194.76,10.0]
[1753133589262,42.69282069,194.83,194.76,10.71]
[1753133589479,66.75032535,194.83,194.75,10.0]
[1753133589660,66.75032535,194.83,194.73,0.2]
[1753133589661,53.52468397,194.83,194.76,10.0]
[1753133589859,60.13750466,194.83,194.75,10.71]
[1753133590969,65.27018443,194.83,194.75,10.71]
[1753133591768,65.27018443,194.83,194.76,10.0]
[1753133591950,16.78468397,194.82,194.74,10.0]
[1753133592267,56.01032535,194.8,194.73,10.2]
[1753133592572,92.11032535,194.8,194.73,10.2]
[1753133592882,101.94995982,194.8,194.73,10.2]
[1753133593058,97.90379557,194.8,194.74,10.0]
[1753133593881,97.90379557,194.8,194.73,10.91]
[1753133594064,97.90379557,194.8,194.75,10.0]
[1753133595693,97.90379557,194.8,194.73,10.2]
[1753133595854,97.90379557,194.8,194.74,10.0]
[1753133596455,97.90379557,194.8,194.73,10.2]
[1753133596675,97.90379557,194.8,194.73,0.2]
[1753133598785,97.90379557,194.8,194.73,10.2]
[1753133598974,97.90379557,194.8,194.73,0.2]
[1753133599176,97.90379557,194.8,194.73,10.2]
[1753133599483,97.90379557,194.8,194.73,0.2]
[1753133599661,97.90379557,194.8,194.73,10.2]
[1753133600757,97.90379557,194.8,194.73,0.2]
[1753133601156,105.28468397,194.79,194.73,0.2]
[1753133601357,23.39750466,194.74,194.73,0.2]
[1753133601667,59.49750466,194.74,194.73,0.2]
[1753133601869,60.15750466,194.74,194.73,0.2]
[1753133602872,65.29255652,194.74,194.73,0.2]
[1753133604292,42.78468397,194.72,194.71,0.03]
[1753133604500,6.61282069,194.75,194.71,0.03]
[1753133604793,6.61282069,194.72,194.71,10.74]
[1753133604971,42.71282069,194.72,194.71,10.74]
[1753133606681,42.71282069,194.72,194.71,0.74]
[1753133608073,47.84839998,194.72,194.71,0.03]
[1753133609782,65.29308395,194.72,194.71,0.03]
[1753133610800,0.66,194.78,194.71,0.03]
[1753133610968,0.66,194.78,194.73,10.0]
[1753133610969,6.61282069,194.76,194.73,10.0]
[1753133611165,36.12,194.75,194.73,10.0]
[1753133611404,36.12,194.75,194.74,0.71]
[1753133611569,16.78468397,194.79,194.74,0.71]
[1753133611777,36.12,194.78,194.75,10.0]
[1753133612067,36.12,194.77,194.76,0.71]
[1753133612267,36.12,194.77,194.76,10.71]
[1753133612970,6.61282069,194.8,194.76,10.71]
[1753133613171,16.78468397,194.82,194.78,10.0]
[1753133613367,36.12,194.81,194.79,0.71]
[1753133613572,42.73282069,194.81,194.79,10.71]
[1753133614105,36.12,194.81,194.79,10.71]
[1753133614472,6.61282069,194.8,194.79,10.0]
[1753133614891,42.73282069,194.8,194.79,10.0]
[1753133615094,42.73282069,194.8,194.78,10.0]
[1753133615397,42.73282069,194.8,194.75,5.13471299]
[1753133615398,36.12,194.8,194.79,10.0]
[1753133615994,6.61282069,194.82,194.79,0.71]
[1753133616181,6.61282069,194.83,194.8,0.71]
[1753133616505,6.61282069,194.83,194.81,10.71]
[1753133616676,36.12,194.82,194.81,10.71]
[1753133617300,6.61282069,194.83,194.81,10.71]
[1753133617476,36.12,194.82,194.81,10.71]
[1753133617677,6.61282069,194.83,194.81,10.71]
[1753133617880,36.1,194.82,194.81,0.71]
[1753133618069,36.1,194.82,194.81,10.71]
[1753133619205,5.13161614,194.88,194.81,22.45597751]
[1753133619405,16.78468397,194.86,194.84,10.0]
[1753133619608,36.1,194.85,194.84,10.0]
[1753133619907,36.1,194.85,194.84,10.69]
[1753133620396,36.1,194.85,194.84,10.0]
[1753133621395,6.61282069,194.87,194.85,10.0]
[1753133621599,36.1,194.86,194.85,10.0]
[1753133622609,36.1,194.86,194.83,10.69]
[1753133622815,36.1,194.86,194.85,10.0]
[1753133623025,42.71282069,194.86,194.84,10.0]
[1753133623312,24.09750466,194.85,194.8,10.0]
[1753133623496,6.61282069,194.82,194.8,10.0]
[1753133623694,36.1,194.81,194.8,10.0]
[1753133624089,36.1,194.81,194.8,10.69]
[1753133624337,5.83133009,194.89,194.8,22.43629091]
[1753133624619,36.1,194.88,194.86,10.0]
[1753133624989,36.1,194.88,194.86,10.69]
[1753133625403,42.71282069,194.88,194.86,10.69]
[1753133625613,42.71282069,194.88,194.86,10.0]
[1753133625817,42.71282069,194.88,194.85,10.0]
[1753133626024,42.71282069,194.88,194.86,10.0]
[1753133627721,36.1,194.88,194.85,10.69]
[1753133627923,36.1,194.88,194.86,10.0]
[1753133628105,36.1,194.88,194.85,10.69]
[1753133628421,36.1,194.88,194.86,10.0]
[1753133628594,36.1,194.88,194.85,10.69]
[1753133628810,36.1,194.88,194.86,10.0]
[1753133629838,36.1,194.88,194.85,10.69]
[1753133630006,36.1,194.88,194.86,10.0]
[1753133631028,36.1,194.88,194.85,10.69]
[1753133631321,36.1,194.88,194.86,10.0]
[1753133633025,28.52862081,194.89,194.86,10.0]
[1753133633231,36.1,194.88,194.85,10.69]
[1753133633733,36.1,194.88,194.86,10.0]
[1753133634414,0.06,194.96,194.91,26.0]
[1753133634618,0.06,194.96,194.95,10.0]
[1753133635019,0.06,194.96,194.95,10.69]
[1753133635421,0.06,194.96,194.95,10.0]
[1753133635937,0.06,194.96,194.95,10.69]
[1753133636232,36.14,194.96,194.95,10.69]
[1753133636728,0.06,194.96,194.95,22.43234107]
[1753133638542,0.06,194.96,194.95,10.69]
[1753133639957,0.06,194.96,194.95,10.0]
[1753133640332,7.37282069,194.96,194.92,10.0]
[1753133640638,6.61282069,194.93,194.92,10.0]
[1753133640836,6.61282069,194.93,194.87,10.0]
[1753133640837,43.39282069,194.93,194.87,10.0]
[1753133641047,6.61282069,194.88,194.87,10.0]
[1753133641348,42.69282069,194.89,194.88,10.0]
[1753133641710,42.69282069,194.89,194.87,10.0]
[1753133641915,11.74419715,194.88,194.85,10.0]
[1753133642115,6.61282069,194.87,194.85,10.0]
[1753133643250,10.61524543,194.87,194.85,10.0]
[1753133644547,10.61524543,194.87,194.86,10.0]
[1753133645038,10.61524543,194.87,194.85,10.0]
[1753133645237,10.61524543,194.87,194.86,10.0]
[1753133646325,10.61524543,194.87,194.85,10.0]
[1753133646534,10.61524543,194.87,194.86,10.0]
[1753133647033,88.5,194.97,194.89,10.0]
[1753133647227,36.08,194.95,194.92,10.0]
[1753133647420,0.06,194.96,194.93,0.69]
[1753133647724,36.08,194.94,194.92,10.0]
[1753133647932,36.08,194.94,194.91,10.0]
[1753133648137,46.69524543,194.94,194.92,10.0]
[1753133649440,46.69524543,194.94,194.91,10.0]
[1753133649645,46.69524543,194.94,194.92,10.0]
[1753133649854,52.49507718,194.94,194.91,10.0]
[1753133650154,52.49507718,194.94,194.92,10.0]
[1753133650633,36.08,194.94,194.92,10.65]
[1753133651025,51.8251645,194.94,194.92,10.0]
[1753133651226,51.8251645,194.94,194.91,10.0]
[1753133651458,36.08,194.94,194.92,10.0]
[1753133652833,0.06,194.96,194.92,15.13025794]
[1753133653033,36.06,194.95,194.94,10.0]
[1753133653728,0.06,194.96,194.94,10.0]
[1753133653929,36.06,194.95,194.94,10.0]
[1753133654132,47.34524543,194.95,194.94,10.0]
[1753133654549,36.73,194.95,194.94,10.0]
[1753133655032,0.67,194.95,194.94,10.0]
[1753133655232,47.34524543,194.95,194.94,10.0]
[1753133655755,52.47476581,194.95,194.92,10.0]
[1753133655950,11.28524543,194.94,194.91,10.0]
[1753133656251,36.06,194.93,194.91,10.0]
[1753133656464,36.06,194.93,194.92,10.0]
[1753133657650,36.06,194.93,194.91,0.65]
[1753133657651,15.74476581,194.95,194.94,10.0]
[1753133658031,51.80476581,194.95,194.94,10.0]
[1753133658451,16.41476581,194.95,194.94,10.0]
[1753133658638,52.47476581,194.95,194.94,10.0]
[1753133658843,16.41476581,194.95,194.94,10.0]
[1753133659236,52.47476581,194.95,194.94,10.0]
[1753133659759,52.47476581,194.95,194.91,10.0]
[1753133659966,10.61524543,194.94,194.91,10.0]
[1753133660138,36.06,194.93,194.91,10.0]
[1753133660451,0.67,194.92,194.91,10.0]
[1753133661544,46.67524543,194.93,194.91,10.0]
[1753133661849,47.34524543,194.93,194.91,10.0]
[1753133662444,36.73,194.93,194.91,10.0]
[1753133663249,36.73,194.93,194.92,10.0]
[1753133663452,36.06,194.93,194.91,10.0]
[1753133663839,36.06,194.93,194.92,10.0]
[1753133664038,36.06,194.93,194.91,10.0]
[1753133664256,15.74522716,194.94,194.91,10.0]
[1753133664442,0.06,194.95,194.93,10.61524543]
[1753133664643,0.06,194.95,194.94,47.77822378]
[1753133664841,0.06,194.96,194.95,10.0]
[1753133665158,0.06,194.96,194.95,17.27301176]
[1753133665833,0.06,194.96,194.95,22.40253214]
[1753133666051,0.06,194.96,194.95,22.91548417]
[1753133667957,1e-08,194.96,194.95,22.91548417]
[1753133668470,1e-08,194.96,194.95,23.11668507]
[1753133670564,1e-08,194.96,194.95,22.60373304]
[1753133670864,1e-08,194.96,194.95,58.66373304]
[1753133673466,1e-08,194.98,194.97,28.33948397]
[1753133673651,1e-08,194.98,194.97,35.47539515]
[1753133673846,1e-08,195.0,194.99,26.0]
[1753133674052,1e-08,195.01,195.0,10.0]
[1753133674357,1e-08,195.01,195.0,23.89602352]
[1753133675661,1e-08,195.01,195.0,29.02422864]
[1753133679272,1e-08,195.01,195.0,45.80891261]
[1753133685076,1e-08,195.01,195.0,32.56288909]
[1753133685375,1e-08,195.01,195.0,45.80891261]
[1753133689785,1e-08,195.02,195.0,45.80891261]
[1753133690084,1e-08,195.02,195.01,43.82580597]
[1753133690282,1e-08,195.02,195.01,53.82580597]
[1753133690863,1e-08,195.02,195.01,58.95374812]
[1753133694266,0.06,195.06,195.05,26.78468397]
[1753133694478,0.06,195.12,195.09,16.78468397]
[1753133694677,0.67,195.18,195.17,10.0]
[1753133694880,6.0629,195.21,195.17,16.62301176]
[1753133694881,0.67,195.2,195.17,16.62301176]
[1753133695182,0.67,195.2,195.19,10.0]
[1753133698859,16.78468397,195.19,195.14,10.0]
[1753133699078,6.62301176,195.16,195.14,10.0]
[1753133699302,0.67,195.15,195.13,10.0]
[1753133699596,7.29301176,195.15,195.14,10.0]
[1753133699782,0.67,195.15,195.14,10.0]
[1753133700490,1.5036,195.14,195.1,10.0]
[1753133700789,6.62812598,195.14,195.13,10.0]
[1753133701293,7.29812598,195.14,195.13,10.0]
[1753133701897,13.92113774,195.14,195.13,10.0]
[1753133702883,13.92113774,195.14,195.11,10.0]
[1753133703086,1.5036,195.14,195.13,10.0]
[1753133703587,2.1736,195.14,195.13,10.0]
[1753133722998,8.79661176,195.14,195.13,10.0]
[1753133724477,0.06,195.15,195.14,10.0]
[1753133724686,1e-08,195.15,195.14,10.66]
[1753133724885,1e-08,195.15,195.14,17.28301176]
[1753133725891,1e-08,195.15,195.14,22.40753774]
[1753133726096,1e-08,195.15,195.14,22.91999033]
[1753133727408,1e-08,195.15,195.14,39.7046743]
[1753133727589,1e-08,195.15,195.14,75.6846743]
[1753133728208,1e-08,195.15,195.14,22.91999033]
[1753133728413,1e-08,195.15,195.14,39.7046743]
[1753133728588,0.06,195.19,195.18,16.62301176]
[1753133728789,0.06,195.19,195.18,53.11535933]
[1753133729315,0.06,195.19,195.18,53.77535933]
[1753133729715,0.06,195.19,195.18,58.89883509]
[1753133732188,0.06,195.21,195.2,36.0]
[1753133732402,0.06,195.22,195.21,36.0]
[1753133732705,0.06,195.22,195.21,79.26301176]
[1753133732887,0.06,195.22,195.21,78.60301176]
[1753133733087,0.06,195.22,195.21,79.26301176]
[1753133733498,1e-08,195.22,195.21,84.38570014]
[1753133734985,0.06,195.25,195.23,10.0]
[1753133735300,0.06,195.25,195.23,17.13522812]
[1753133735605,0.06,195.25,195.23,22.91739172]
[1753133737185,0.06,195.25,195.24,77.08190124]
[1753133737386,0.06,195.25,195.24,77.74190124]
[1753133737796,0.06,195.25,195.24,84.364913]
[1753133737987,0.06,195.25,195.24,84.87710312]
[1753133738487,0.06,195.25,195.24,58.87710312]
[1753133738990,0.06,195.25,195.24,58.364913]
[1753133739992,0.06,195.25,195.24,77.08190124]
[1753133740192,0.06,195.25,195.24,83.704913]
[1753133740510,0.06,195.25,195.24,77.08190124]
[1753133740691,0.06,195.25,195.24,83.704913]
[1753133744792,0.74,195.25,195.24,83.704913]
[1753133745309,0.06,195.25,195.24,83.704913]
[1753133747536,0.74,195.25,195.24,10.0]
[1753133747707,7.36301176,195.25,195.24,10.0]
[1753133747915,7.36301176,195.25,195.22,10.0]
[1753133748090,6.62301176,195.23,195.22,10.0]
[1753133748418,0.68,195.23,195.22,10.0]
[1753133749223,7.30301176,195.23,195.22,10.0]
[1753133749593,12.42517536,195.23,195.22,10.0]
[1753133749993,7.30301176,195.23,195.22,10.0]
[1753133751320,7.30301176,195.23,195.22,10.03]
[1753133753108,12.42517536,195.23,195.22,10.03]
[1753133753520,12.42517536,195.23,195.14,7.29301176]
[1753133753521,16.78468397,195.22,195.15,10.0]
[1753133753822,101.55549612,195.23,195.15,10.0]
[1753133753823,6.62301176,195.16,195.15,10.0]
[1753133754338,7.30301176,195.16,195.15,10.0]
[1753133758507,12.42701257,195.16,195.14,10.0]
[1753133758709,7.30301176,195.15,195.14,10.0]
[1753133759921,7.30301176,195.15,195.13,10.0]
[1753133760130,6.62301176,195.15,195.14,10.0]
[1753133760528,41.08380573,195.17,195.14,10.0]
[1753133760706,6.62301176,195.15,195.14,10.0]
[1753133761121,7.30301176,195.15,195.14,10.0]
[1753133762734,7.30301176,195.15,195.13,10.0]
[1753133762944,25.63949573,195.14,195.12,0.03]
[1753133763231,59.36769573,195.13,195.12,0.03]
[1753133763441,60.04769573,195.13,195.12,0.03]
[1753133763932,62.56936768,195.13,195.12,10.03]
[1753133764507,67.69415628,195.13,195.12,0.03]
[1753133768449,93.69415628,195.13,195.12,0.03]
[1753133768742,23.40769573,195.09,195.08,0.03]
[1753133768916,18.33648397,195.08,195.07,0.03]
[1753133769116,25.64949573,195.08,195.07,0.03]
[1753133769722,114.14949573,195.08,195.07,0.03]
[1753133770136,119.27559784,195.08,195.07,0.03]
[1753133772523,119.27559784,195.08,195.04,0.03]
[1753133772524,42.78468397,195.05,195.04,0.03]
[1753133772725,16.78468397,195.04,194.97,10.0]
[1753133772934,6.62301176,194.98,194.97,10.0]
[1753133773234,43.29301176,194.98,194.97,10.0]
[1753133773636,36.67,194.98,194.97,10.0]
[1753133773944,43.29301176,194.98,194.97,10.0]
[1753133778433,43.29301176,194.98,194.96,10.0]
[1753133778636,6.62301176,194.97,194.96,10.0]
[1753133782146,88.5,195.03,195.0,10.0]
[1753133782342,6.62301176,195.01,195.0,10.0]
[1753133782565,52.76468397,195.02,195.0,10.0]
[1753133782750,6.62301176,195.01,195.0,10.0]
[1753133783044,7.31301176,195.01,195.0,10.0]
[1753133783629,60.07769573,195.01,195.0,10.0]
[1753133783830,65.20563788,195.01,195.0,10.0]
[1753133784329,24.09769573,195.01,195.0,10.0]
[1753133784528,42.60301176,195.01,195.0,10.0]
[1753133785132,43.29301176,195.01,195.0,10.0]
[1753133785442,43.29301176,195.01,194.99,10.0]
[1753133785650,6.62301176,195.0,194.99,10.0]
[1753133787151,42.60301176,195.0,194.99,10.0]
[1753133787527,35.98,195.0,194.99,10.0]
[1753133789252,6.62301176,195.01,195.0,10.0]
[1753133789454,43.29301176,195.01,195.0,10.0]
[1753133793131,88.5,195.03,195.0,10.0]
[1753133793331,88.5,195.03,195.02,10.0]
[1753133793332,95.12301176,195.03,195.02,10.0]
[1753133793545,35.98,195.03,195.02,10.0]
[1753133798536,0.06,195.04,195.03,10.0]
[1753133798737,136.29016516,195.04,195.03,10.0]
[1753133798958,136.97016516,195.04,195.03,10.0]
[1753133801355,16.78468397,195.03,195.02,10.0]
[1753133801563,24.08769573,195.03,195.02,10.0]
[1753133802666,23.40769573,195.03,195.02,10.0]
[1753133802870,24.08769573,195.03,195.02,10.0]
[1753133803743,60.06769573,195.03,195.02,10.0]
[1753133805095,52.76468397,195.03,195.02,10.0]
[1753133806454,59.38769573,195.03,195.02,10.0]
[1753133806761,52.76468397,195.03,195.02,10.0]
[1753133806964,35.98,195.03,195.02,10.0]
[1753133807770,43.28301176,195.03,195.02,10.0]
[1753133808668,42.60301176,195.03,195.02,10.0]
[1753133809364,43.28301176,195.03,195.02,10.0]
[1753133810254,43.28301176,195.03,195.0,5.83815586]
[1753133810255,105.34468397,195.04,195.03,10.0]
[1753133810467,148.62769573,195.04,195.03,10.0]
[1753133811372,147.94769573,195.04,195.03,10.0]
[1753133811571,141.32468397,195.04,195.03,10.0]
[1753133811953,124.54,195.04,195.03,10.0]
[1753133813363,88.56,195.04,195.03,10.0]
[1753133813576,124.54,195.04,195.03,15.12741629]
[1753133814469,88.56,195.04,195.03,15.80741629]
[1753133814656,0.06,195.04,195.03,15.80741629]
[1753133817455,0.06,195.04,195.03,15.12741629]
[1753133821385,0.06,195.04,195.03,15.80741629]
[1753133822687,0.06,195.04,195.03,15.12741629]
[1753133825990,0.06,195.04,195.03,15.80741629]
[1753133828204,0.06,195.04,195.03,15.12741629]
[1753133833294,0.06,195.04,195.03,15.81741629]
[1753133833794,0.06,195.04,195.03,15.12741629]
[1753133841997,0.06,195.04,195.03,15.15741629]
[1753133845588,0.06,195.04,195.03,15.84741629]
[1753133846407,0.06,195.04,195.03,15.15741629]
[1753133850502,35.52,195.05,195.03,15.15741629]
[1753133852807,36.18,195.05,195.04,10.0]
[1753133857506,35.52,195.05,195.04,10.0]
[1753133858603,53.02468397,195.05,195.04,10.0]
[1753133859002,57.2618416,195.05,195.04,10.0]
[1753133859511,62.38873214,195.05,195.04,10.0]
[1753133860613,16.78468397,195.04,195.03,10.03]
[1753133860910,21.7418416,195.04,195.03,10.03]
[1753133864907,57.6818416,195.04,195.03,10.03]
[1753133869524,53.44468397,195.04,195.03,10.03]
[1753133869722,57.6818416,195.04,195.03,10.03]
[1753133869917,57.6818416,195.04,195.03,0.03]
[1753133870227,57.6818416,195.04,195.03,10.03]
[1753133870409,57.6818416,195.04,195.03,0.03]
[1753133873510,57.6818416,195.04,195.03,10.03]
[1753133874027,57.6818416,195.04,194.98,0.72]
[1753133874028,23.1828,195.0,194.81,4.03545689]
[1753133874330,49.08028397,194.86,194.77,0.82]
[1753133874528,16.78468397,194.84,194.77,0.82]
[1753133874736,0.5130573,194.83,194.77,0.1]
[1753133874905,0.5130573,194.83,194.82,0.82]
[1753133875105,0.72,194.89,194.82,7.45150658]
[1753133875106,0.5130573,194.88,194.82,7.45150658]
[1753133875337,0.5130573,194.89,194.84,6.63150658]
[1753133875701,0.5130573,194.89,194.85,0.72]
[1753133875905,0.5130573,194.89,194.84,6.63150658]
[1753133876129,0.5130573,194.89,194.86,0.72]
[1753133876430,0.5130573,194.89,194.87,0.72]
[1753133876626,0.5130573,194.89,194.86,36.64]
[1753133876817,0.5130573,194.89,194.86,37.36]
[1753133877017,0.5130573,194.89,194.87,0.72]
[1753133877408,0.5130573,194.89,194.87,36.64]
[1753133877934,0.5130573,194.89,194.87,37.36]
[1753133878728,6.63150658,194.93,194.88,0.72]
[1753133878928,0.5130573,194.92,194.88,0.72]
[1753133879331,17.29774127,194.93,194.88,0.72]
[1753133881109,6.63150658,194.9,194.88,0.72]
[1753133881415,23.92924785,194.9,194.89,36.6]
[1753133881610,24.64924785,194.9,194.84,0.72]
[1753133881914,24.64924785,194.9,194.85,36.62]
[1753133881915,6.63150658,194.86,194.85,36.62]
[1753133882115,0.5130573,194.88,194.85,37.34]
[1753133882311,0.5130573,194.88,194.86,0.72]
[1753133883119,0.5130573,194.88,194.87,36.6]
[1753133883327,7.14456388,194.92,194.87,37.32]
[1753133883521,0.5130573,194.92,194.88,0.72]
[1753133883834,5.64337475,194.92,194.88,0.72]
[1753133884038,12.27488133,194.92,194.89,0.72]
[1753133884418,12.27488133,194.92,194.9,36.62]
[1753133885142,12.27488133,194.92,194.9,37.34]
[1753133885527,5.64337475,194.92,194.9,37.34]
[1753133885742,12.27372288,194.92,194.9,37.34]
[1753133887323,11.76092121,194.91,194.9,37.34]
[1753133887545,11.76092121,194.91,194.9,37.3]
[1753133888518,6.6307129,194.91,194.9,37.3]
[1753133889418,11.76128598,194.91,194.9,37.3]
[1753133891040,11.76102277,194.92,194.9,37.3]
[1753133891247,11.76102277,194.92,194.9,0.72]
[1753133891467,11.76102277,194.92,194.91,36.54]
[1753133892054,11.82078771,194.93,194.91,37.22]
[1753133892238,11.82078771,194.93,194.92,0.68]
[1753133892442,0.06,194.93,194.92,0.68]
[1753133897257,0.06,194.93,194.87,5.6745389]
[1753133897459,0.06,194.93,194.92,0.68]
[1753133897636,0.06,194.93,194.92,37.18]
[1753133899358,0.06,194.93,194.92,37.16]
[1753133920076,0.06,194.93,194.92,48.92102277]
[1753133921051,0.06,194.93,194.92,74.92102277]
[1753133935157,0.06,194.97,194.92,87.74679744]
[1753133935469,0.06,194.97,194.95,6.6307129]